fUST/lending_fUST_20250610
["ID","MTS","AMOUNT","RATE_DAILY","PERIOD"]
[365146489,1749492650422,-460.0,0.00023013,4]
[365146490,1749492650432,-890.98,0.00023013,4]
[365146491,1749492650441,-794.98,0.00023013,4]
[365146492,1749492650452,-2274.69,0.00023013,4]
[365146493,1749492650461,-157.028083,0.0002304,5]
[365146494,1749492650471,-267.59102629,0.0002309,2]
[365146495,1749492650481,-500.0,0.0002309,2]
[365146496,1749492650490,-151.0,0.000231,7]
[365146497,1749492650500,-179.463166,0.00023108,7]
[365146498,1749492650509,-179.46316,0.00023108,7]
[365146499,1749492650520,-160.0,0.00023108,3]
[365146500,1749492650529,-206.0,0.0002313,2]
[365146501,1749492650539,-152.511,0.00023155,2]
[365146502,1749492650548,-150.359,0.00023155,2]
[365146503,1749492650558,-196.942,0.00023155,2]
[365146504,1749492650568,-963.0,0.00023155,2]
[365146505,1749492650577,-765.0,0.00023155,2]
[365146506,1749492650587,-2160.0,0.00023155,2]
[365146507,1749492650597,-287.741,0.00023155,2]
[365146508,1749492650607,-405.0,0.00023155,2]
[365146509,1749492650617,-679.79310341,0.00023176,8]
[365146510,1749492650627,-200.0,0.0002318,7]
[365146511,1749492650636,-156.025299,0.00023205,7]
[365146512,1749492650646,-156.025291,0.00023205,7]
[365146513,1749492650656,-164.048018,0.00023205,7]
[365146514,1749492650665,-164.04801,0.00023205,7]
[365146515,1749492650676,-228.910818,0.00023205,7]
[365146516,1749492650685,-228.910825,0.00023205,7]
[365146517,1749492650695,-151.0,0.00023287,7]
[365146518,1749492650706,-481.96,0.00023287,4]
[365146519,1749492650715,-460.0,0.00023287,4]
[365146520,1749492650725,-460.0,0.00023287,4]
[365146521,1749492650734,-460.0,0.00023287,2]
[365146522,1749492650743,-460.0,0.00023287,4]
[365146523,1749492650753,-853.52,0.00023287,4]
[365146524,1749492650762,-174.89813927,0.00023287,4]
[365146525,1749492650772,-1247.26,0.00023287,4]
[365146526,1749492650781,-1636.16,0.00023287,4]
[365146527,1749492650791,-484.48,0.00023287,4]
[365146528,1749492650801,-617.94,0.00023287,4]
[365146529,1749492650810,-904.06,0.00023287,4]
[365146530,1749492650819,-460.0,0.00023287,4]
[365146531,1749492650829,-884.66,0.00023287,4]
[365146532,1749492650839,-460.0,0.00023287,4]
[365146533,1749492650848,-552.55,0.00023287,4]
[365146534,1749492650858,-460.0,0.00023287,4]
[365146535,1749492650867,-460.0,0.00023287,4]
[365146536,1749492650973,-892.09,0.00023287,4]
[365146537,1749492650983,-736.81,0.00023287,4]
[365146538,1749492650992,-326.86,0.00023287,4]
[365146539,1749492651002,-460.0,0.00023287,4]
[365146540,1749492651012,-1110.6,0.00023287,4]
[365146541,1749492651022,-460.0,0.00023287,4]
[365146542,1749492651032,-1359.1,0.00023287,4]
[365146543,1749492651042,-460.0,0.00023287,4]
[365146544,1749492651052,-709.82,0.00023287,4]
[365146545,1749492651061,-460.0,0.00023287,4]
[365146546,1749492651070,-460.0,0.00023287,4]
[365146547,1749492651080,-460.0,0.00023287,4]
[365146548,1749492651089,-2201.86,0.00023287,4]
[365146549,1749492651099,-1774.99,0.00023287,4]
[365146550,1749492651108,-460.0,0.00023287,4]
[365146551,1749492651117,-2126.84,0.00023287,4]
[365146552,1749492651127,-479.45,0.00023287,4]
[365146553,1749492651137,-650.38,0.00023287,4]
[365146554,1749492651146,-527.64,0.00023287,4]
[365146555,1749492651155,-16120.96,0.00023287,4]
[365146556,1749492651165,-460.0,0.00023287,4]
[365146557,1749492651174,-890.98,0.00023287,4]
[365146558,1749492651183,-794.98,0.00023287,4]
[365146559,1749492651193,-2274.69,0.00023287,4]
[365146560,1749492651203,-2985.73,0.00023288,3]
[365146561,1749492651213,-3000.0,0.000233,2]
[365146562,1749492651223,-160.0,0.000233,3]
[365146563,1749492651233,-424.05420114,0.000233,3]
[365146564,1749492651242,-151.0,0.000233,5]
[365146565,1749492651252,-3097.457059,0.0002331,2]
[365146566,1749492651262,-1856.0,0.00023338,2]
[365146567,1749492651271,-679.79310341,0.00023348,9]
[365146568,1749492651280,-504.57525812,0.0002338,2]
[365146569,1749492651289,-1564.29,0.00023398,2]
[365146570,1749492651299,-881.19,0.000234,7]
[365146571,1749492651308,-1856.0,0.00023402,2]
[365146572,1749492651318,-659.82429951,0.00023409,2]
[365146573,1749492651327,-206.0,0.0002341,2]
[365146574,1749492651337,-1200.0,0.00023425,2]
[365146575,1749492651346,-1000.0,0.00023425,2]
[365146576,1749492651355,-1000.0,0.00023448,2]
[365146577,1749492651364,-1000.0,0.00023462,2]
[365146578,1749492651374,-6000.1,0.0002348,3]
[365146579,1749492651384,-160.0,0.0002349,3]
[365146580,1749492651393,-160.0,0.0002349,3]
[365146581,1749492651403,-1001.78136129,0.00023492,2]
[365146582,1749492651412,-2000.0,0.000235,2]
[365146583,1749492651422,-872.35041136,0.000235,2]
[365146584,1749492651431,-2680.92,0.000235,2]
[365146585,1749492651440,-1000.0,0.00023504,2]
[365146586,1749492651449,-679.79310341,0.00023521,9]
[365146587,1749492651459,-6000.0,0.00023542,3]
[365146588,1749492651469,-1856.0,0.00023547,2]
[365146589,1749492651479,-32205.7151354,0.00023559,2]
[365146590,1749492651489,-200.0,0.00023561,4]
[365146591,1749492651498,-150.61138,0.00023561,4]
[365146592,1749492651508,-481.96,0.00023561,4]
[365146593,1749492651517,-460.0,0.00023561,4]
[365146594,1749492651527,-460.0,0.00023561,4]
[365146595,1749492651537,-460.0,0.00023561,2]
[365146596,1749492651547,-460.0,0.00023561,4]
[365146597,1749492651556,-853.52,0.00023561,4]
[365146598,1749492651566,-1247.26,0.00023561,4]
[365146599,1749492651576,-1636.16,0.00023561,4]
[365146600,1749492651586,-484.48,0.00023561,4]
[365146601,1749492651595,-617.94,0.00023561,4]
[365146602,1749492651605,-904.06,0.00023561,4]
[365146603,1749492651615,-460.0,0.00023561,4]
[365146604,1749492651625,-884.66,0.00023561,4]
[365146605,1749492651634,-600.11,0.00023561,4]
[365146606,1749492651644,-552.55,0.00023561,4]
[365146607,1749492651654,-460.0,0.00023561,4]
[365146608,1749492651663,-460.0,0.00023561,4]
[365146609,1749492651673,-892.09,0.00023561,4]
[365146610,1749492651683,-736.81,0.00023561,4]
[365146611,1749492651692,-365.95,0.00023561,4]
[365146612,1749492651702,-1110.6,0.00023561,4]
[365146613,1749492651712,-460.0,0.00023561,4]
[365146614,1749492651721,-1359.1,0.00023561,4]
[365146615,1749492651731,-460.0,0.00023561,4]
[365146616,1749492651740,-709.82,0.00023561,4]
[365146617,1749492651749,-460.0,0.00023561,4]
[365146618,1749492651759,-460.0,0.00023561,4]
[365146619,1749492651768,-460.0,0.00023561,4]
[365146620,1749492651777,-2201.86,0.00023561,4]
[365146621,1749492651787,-1774.99,0.00023561,4]
[365146622,1749492651797,-460.0,0.00023561,4]
[365146623,1749492651807,-2126.84,0.00023561,4]
[365146624,1749492651817,-479.45,0.00023561,4]
[365146625,1749492651826,-650.38,0.00023561,4]
[365146626,1749492651836,-527.64,0.00023561,4]
[365146627,1749492651846,-16120.96,0.00023561,4]
[365146628,1749492651856,-460.0,0.00023561,4]
[365146629,1749492651866,-794.98,0.00023561,4]
[365146630,1749492651878,-890.98,0.00023561,4]
[365146631,1749492651889,-2274.69,0.00023561,4]
[365146632,1749492651899,-8000.0,0.00023626,3]
[365146633,1749492651909,-438.97473954,0.00023638,2]
[365146634,1749492651919,-1856.0,0.00023643,2]
[365146635,1749492651929,-5000.0,0.00023653,2]
[365146636,1749492651939,-2000.0,0.00023688,4]
[365146637,1749492651950,-679.79310341,0.00023693,9]
[365146638,1749492651961,-206.0,0.000237,2]
[365146639,1749492651973,-1856.0,0.00023735,2]
[365146640,1749492651983,-152.72517312,0.00023773,2]
[365146641,1749492651992,-501.09580603,0.00023773,2]
[365146642,1749492652002,-25883.25661757,0.0002378,5]
[365146643,1749492652104,-745.10319183,0.0002378,5]
[365146644,1749492652116,-21680.7984827,0.0002378,5]
[365146645,1749492652128,-377.33167231,0.0002378,5]
[365146646,1749492652139,-9611.38154423,0.0002378,5]
[365146647,1749492652150,-2917.31110778,0.0002378,5]
[365146648,1749492652160,-1856.0,0.00023796,2]
[365146649,1749492652170,-842.5625,0.000238,3]
[365146650,1749492652179,-5555.29676391,0.000238,3]
[365146651,1749492652190,-66771.1539632,0.000238,3]
[365146652,1749492652201,-834.7738823,0.000238,3]
[365146653,1749492652211,-229.64266968,0.000238,3]
[365146654,1749492652220,-1683.599859,0.0002382,5]
[365146655,1749492652230,-1856.0,0.00023822,2]
[365146656,1749492652239,-481.96,0.00023835,4]
[365146657,1749492652250,-460.0,0.00023835,4]
[365146658,1749492652259,-460.0,0.00023835,4]
[365146659,1749492652268,-460.0,0.00023835,2]
[365146660,1749492652278,-460.0,0.00023835,4]
[365146661,1749492652287,-853.52,0.00023835,4]
[365146662,1749492652297,-1247.26,0.00023835,4]
[365146663,1749492652307,-1636.16,0.00023835,4]
[365146664,1749492652316,-484.48,0.00023835,4]
[365146665,1749492652326,-617.94,0.00023835,4]
[365146666,1749492652336,-904.06,0.00023835,4]
[365146667,1749492652345,-460.0,0.00023835,4]
[365146668,1749492652355,-884.66,0.00023835,4]
[365146669,1749492652364,-552.55,0.00023835,4]
[365146670,1749492652375,-460.0,0.00023835,4]
[365146671,1749492652386,-460.0,0.00023835,4]
[365146672,1749492652395,-892.09,0.00023835,4]
[365146673,1749492652405,-736.81,0.00023835,4]
[365146674,1749492652416,-1110.6,0.00023835,4]
[365146675,1749492652426,-460.0,0.00023835,4]
[365146676,1749492652436,-1359.1,0.00023835,4]
[365146677,1749492652445,-460.0,0.00023835,4]
[365146678,1749492652455,-709.82,0.00023835,4]
[365146679,1749492652464,-460.0,0.00023835,4]
[365146680,1749492652551,-460.0,0.00023835,4]
[365146681,1749492652561,-460.0,0.00023835,4]
[365146682,1749492652571,-2201.86,0.00023835,4]
[365146683,1749492652580,-1774.99,0.00023835,4]
[365146684,1749492652589,-460.0,0.00023835,4]
[365146685,1749492652598,-2126.84,0.00023835,4]
[365146686,1749492652606,-479.45,0.00023835,4]
[365146687,1749492652615,-650.38,0.00023835,4]
[365146688,1749492652624,-527.64,0.00023835,4]
[365146689,1749492652633,-16120.96,0.00023835,4]
[365146690,1749492652643,-460.0,0.00023835,4]
[365146691,1749492652654,-890.98,0.00023835,4]
[365146692,1749492652662,-794.98,0.00023835,4]
[365146693,1749492652671,-2274.69,0.00023835,4]
[365146694,1749492652681,-1856.0,0.00023839,2]
[365146695,1749492652690,-1000.0,0.0002384,5]
[365146696,1749492652699,-1856.0,0.00023852,2]
[365146697,1749492652708,-1856.0,0.0002386,2]
[365146698,1749492652718,-1000.0,0.0002386,5]
[365146699,1749492652727,-1856.0,0.0002386,2]
[365146700,1749492652737,-679.79310341,0.00023866,10]
[365146701,1749492652746,-1856.0,0.00023873,2]
[365146702,1749492652755,-500.0,0.0002388,2]
[365146703,1749492652764,-1000.0,0.0002388,5]
[365146704,1749492652774,-1000.0,0.000239,5]
[365146705,1749492652783,-150.0,0.000239,30]
[365146706,1749492652792,-1000.0,0.0002392,5]
[365146707,1749492652800,-629.04830389,0.00023927,2]
[365146708,1749492652809,-1000.0,0.0002394,5]
[365146709,1749492652819,-1000.0,0.0002396,5]
[365146710,1749492652828,-500.0,0.00023973,2]
[365146711,1749492652838,-1500.0,0.00023973,2]
[365146712,1749492652848,-1800.0,0.00023973,2]
[365146713,1749492652858,-206.0,0.0002398,2]
[365146714,1749492652868,-1000.0,0.0002398,5]
[365146715,1749492652879,-659.82429951,0.00023992,2]
[365146716,1749492652889,-1500.0,0.00023996,2]
[365146717,1749492652899,-629.04830387,0.00023998,2]
[365146718,1749492652909,-500.0,0.00023999,9]
[365146719,1749492652918,-500.0,0.00023999,9]
[365146720,1749492652929,-2200.0,0.00024,2]
[365146721,1749492652939,-500.0,0.00024,2]
[365146722,1749492652949,-236899.29196354,0.00024,2]
[365146723,1749492653023,-174.8095544,0.00020233,2]
[365146724,1749492653033,-1073.7134613,0.00021095,4]
[365146725,1749492653045,-594.2165387,0.00021095,4]
[365146726,1749492653055,-321.4019422,0.00021095,4]
[365146727,1749492653200,-108.02470924,0.00021095,4]
[365146728,1749492653210,-151.0,0.00021095,2]
[365146729,1749492653219,-151.0,0.00021095,2]
[365146730,1749492653233,-293.361018,0.00021368,2]
[365146731,1749492653243,-1667.93,0.00021369,4]
[365146732,1749492653253,-1667.93,0.00021643,4]
[365146733,1749492653262,-1667.93,0.00021917,4]
[365146734,1749492653272,-1667.93,0.00022191,4]
[365146735,1749492653281,-1667.93,0.00022465,4]
[365146736,1749492653290,-1667.93,0.00022739,4]
[365146737,1749492653299,-1000.0,0.00023,2]
[365146738,1749492653308,-1667.93,0.00023013,4]
[365146739,1749492653318,-1667.93,0.00023287,4]
[365146740,1749492653327,-1667.93,0.00023561,4]
[365146741,1749492653336,-1667.93,0.00023835,4]
[365146742,1749492653346,-98962.0210414,0.00024,2]
[365146743,1749492666515,3037.94,0.00018,2]
[365146745,1749492788450,1000.0,0.00024,120]
[365146746,1749492789565,1000.0,0.00024,120]
[365146762,1749493394519,165.600522,0.00013699,2]
[365146770,1749493679404,3178.25133406,0.00018,2]
[365146771,1749493679428,2862.20347668,0.00018,2]
[365146773,1749493710282,280.73856298,0.0001,2]
[365146774,1749493722016,905.999999,0.0002,120]
[365146829,1749493832547,-5000.0,0.00018725,2]
[365146831,1749493832557,-2553.9838559,0.00019105,2]
[365146833,1749493832567,-179.87408814,0.0001938,2]
[365146835,1749493832577,-1200.0,0.00019748,2]
[365146837,1749493832586,-539.7152259,0.00019749,2]
[365146839,1749493832596,-300.0,0.00019841,2]
[365146841,1749493832606,-300.0,0.00019841,2]
[365146843,1749493832616,-300.0,0.00019841,2]
[365146845,1749493832625,-300.0,0.00019841,2]
[365146847,1749493832635,-300.0,0.00019841,2]
[365146849,1749493832645,-300.0,0.00019841,2]
[365146852,1749493832655,-50000.0,0.00019842,2]
[365146854,1749493832666,-3511.0,0.00019844,2]
[365146856,1749493832675,-15497.5198843,0.00020094,2]
[365146858,1749493832685,-207.4,0.00020564,2]
[365146860,1749493832694,-784.69090073,0.000209,4]
[365146862,1749493832704,-167.31312015,0.00020995,2]
[365146864,1749493832713,-784.69090048,0.00021038,4]
[365146866,1749493832722,-954.03788374,0.0002106,2]
[365146868,1749493832733,-500.0,0.00021073,2]
[365146870,1749493832742,-500.0,0.00021073,2]
[365146872,1749493832751,-323.26948215,0.00021073,2]
[365146874,1749493832761,-500.0,0.00021073,2]
[365146876,1749493832771,-500.0,0.00021073,2]
[365146878,1749493832780,-500.0,0.00021073,2]
[365146880,1749493832790,-832.94,0.00021085,3]
[365146882,1749493832799,-416.47,0.00021085,3]
[365146884,1749493832808,-208.23,0.00021085,3]
[365146886,1749493832817,-624.74,0.00021085,3]
[365146888,1749493832826,-254.999,0.00021093,2]
[365146890,1749493832835,-206.037986,0.00021095,4]
[365146892,1749493832845,-440.0,0.00021095,4]
[365146894,1749493832854,-440.0,0.00021095,4]
[365146896,1749493832864,-440.0,0.00021095,4]
[365146897,1749493832873,-430.0,0.00021095,4]
[365146899,1749493832883,-460.0,0.00021095,4]
[365146900,1749493832892,-151.0,0.00021095,2]
[365146901,1749493832908,-151.0,0.00021095,2]
[365146902,1749493832917,-460.0,0.00021095,4]
[365146903,1749493832927,-460.0,0.00021095,4]
[365146904,1749493832936,-328.30114213,0.00021095,4]
[365146905,1749493832946,-440.0,0.00021095,4]
[365146906,1749493832956,-460.0,0.00021095,4]
[365146907,1749493832966,-460.0,0.00021095,4]
[365146908,1749493832976,-173.65366645,0.00021095,4]
[365146909,1749493832988,-522.23186647,0.00021095,4]
[365146910,1749493832998,-440.0,0.00021095,4]
[365146911,1749493833008,-440.0,0.00021095,4]
[365146912,1749493833018,-440.0,0.00021095,4]
[365146913,1749493833029,-440.0,0.00021095,4]
[365146914,1749493833040,-380.0,0.00021095,4]
[365146915,1749493833050,-440.0,0.00021095,4]
[365146916,1749493833060,-440.0,0.00021095,4]
[365146917,1749493833071,-430.0,0.00021095,4]
[365146918,1749493833081,-443.04863108,0.00021095,4]
[365146919,1749493833091,-460.0,0.00021095,4]
[365146920,1749493833101,-430.0,0.00021095,4]
[365146921,1749493833111,-440.0,0.00021095,4]
[365146922,1749493833121,-440.0,0.00021095,4]
[365146923,1749493833131,-460.0,0.00021095,4]
[365146924,1749493833142,-430.0,0.00021095,4]
[365146925,1749493833153,-440.0,0.00021095,4]
[365146926,1749493833163,-360.0,0.00021095,4]
[365146927,1749493833173,-440.0,0.00021095,4]
[365146928,1749493833183,-440.0,0.00021095,4]
[365146929,1749493833193,-440.0,0.00021095,4]
[365146930,1749493833203,-513.56875127,0.00021095,4]
[365146931,1749493833213,-460.0,0.00021095,4]
[365146932,1749493833223,-440.0,0.00021095,4]
[365146933,1749493833237,-431.08077573,0.00021095,4]
[365146934,1749493833247,-581.39860187,0.00021095,4]
[365146935,1749493833258,-509.38328801,0.00021095,4]
[365146936,1749493833268,-460.0,0.00021095,4]
[365146937,1749493833278,-440.0,0.00021095,4]
[365146938,1749493833288,-460.0,0.00021095,4]
[365146939,1749493833300,-380.0,0.00021095,4]
[365146940,1749493833310,-440.0,0.00021095,4]
[365146941,1749493833320,-440.0,0.00021095,4]
[365146942,1749493833330,-440.0,0.00021095,4]
[365146943,1749493833340,-460.0,0.00021095,4]
[365146944,1749493833350,-460.0,0.00021095,4]
[365146945,1749493833359,-294.05629022,0.00021095,4]
[365146946,1749493833371,-460.0,0.00021095,2]
[365146947,1749493833381,-440.0,0.00021095,4]
[365146948,1749493833391,-440.0,0.00021095,4]
[365146949,1749493833401,-440.0,0.00021095,4]
[365146950,1749493833410,-422.70486328,0.00021095,4]
[365146951,1749493833420,-440.0,0.00021095,4]
[365146952,1749493833430,-470.00019909,0.00021095,4]
[365146953,1749493833439,-460.0,0.00021095,4]
[365146954,1749493833450,-460.0,0.00021095,4]
[365146955,1749493833460,-737.22,0.00021095,4]
[365146956,1749493833469,-151.19199093,0.00021095,4]
[365146957,1749493833480,-440.0,0.00021095,4]
[365146958,1749493833490,-460.0,0.00021095,4]
[365146959,1749493833499,-440.0,0.00021095,4]
[365146960,1749493833510,-460.0,0.00021095,4]
[365146961,1749493833520,-440.0,0.00021095,4]
[365146962,1749493833530,-254.07258353,0.00021095,4]
[365146963,1749493833540,-440.0,0.00021095,4]
[365146964,1749493833550,-440.0,0.00021095,4]
[365146965,1749493833559,-460.0,0.00021095,4]
[365146966,1749493833568,-460.0,0.00021095,4]
[365146967,1749493833578,-460.0,0.00021095,4]
[365146968,1749493833588,-440.0,0.00021095,4]
[365146969,1749493833723,-440.0,0.00021095,4]
[365146970,1749493833737,-500.0,0.00021095,4]
[365146971,1749493833747,-500.0,0.00021095,4]
[365146972,1749493833757,-460.0,0.00021095,4]
[365146973,1749493833767,-460.0,0.00021095,4]
[365146974,1749493833777,-460.0,0.00021095,4]
[365146975,1749493833787,-440.0,0.00021095,4]
[365146976,1749493833797,-440.0,0.00021095,4]
[365146977,1749493833807,-460.0,0.00021095,4]
[365146978,1749493833818,-460.0,0.00021095,4]
[365146979,1749493833829,-460.0,0.00021095,4]
[365146980,1749493833839,-440.0,0.00021095,4]
[365146981,1749493833848,-322.68253243,0.00021095,4]
[365146982,1749493833858,-460.0,0.00021095,4]
[365146983,1749493833868,-430.0,0.00021095,4]
[365146984,1749493833879,-430.0,0.00021095,4]
[365146985,1749493833890,-440.0,0.00021095,4]
[365146986,1749493833899,-430.0,0.00021095,4]
[365146987,1749493833909,-401.10544024,0.00021095,4]
[365146988,1749493833919,-460.0,0.00021095,4]
[365146989,1749493833929,-430.0,0.00021095,4]
[365146990,1749493833939,-460.0,0.00021095,4]
[365146991,1749493833948,-422.0,0.00021095,4]
[365146992,1749493833958,-332.95941968,0.00021095,4]
[365146993,1749493833968,-500.0,0.00021095,4]
[365146994,1749493833981,-421.33517862,0.00021095,4]
[365146995,1749493833992,-500.0,0.00021095,4]
[365146996,1749493834002,-460.0,0.00021095,4]
[365146997,1749493834012,-434.56068407,0.00021095,4]
[365146998,1749493834022,-214.73489041,0.00021095,4]
[365146999,1749493834032,-580.98281249,0.00021095,4]
[365147000,1749493834041,-312.48567619,0.00021095,4]
[365147001,1749493834051,-440.0,0.00021095,4]
[365147002,1749493834060,-216.44996262,0.00021095,4]
[365147003,1749493834070,-460.0,0.00021095,4]
[365147004,1749493834080,-440.0,0.00021095,4]
[365147005,1749493834089,-460.0,0.00021095,4]
[365147006,1749493834099,-460.0,0.00021095,4]
[365147007,1749493834110,-440.0,0.00021095,4]
[365147008,1749493834120,-440.0,0.00021095,4]
[365147009,1749493834129,-460.0,0.00021095,4]
[365147010,1749493834139,-440.0,0.00021095,4]
[365147011,1749493834149,-356.20223324,0.00021095,4]
[365147012,1749493834159,-876.53,0.00021095,4]
[365147013,1749493834169,-460.0,0.00021095,4]
[365147014,1749493834178,-440.0,0.00021095,4]
[365147015,1749493834188,-460.0,0.00021095,4]
[365147016,1749493834197,-460.0,0.00021095,4]
[365147017,1749493834207,-403.49952424,0.00021095,4]
[365147018,1749493834216,-430.0,0.00021095,4]
[365147019,1749493834228,-460.0,0.00021095,4]
[365147020,1749493834237,-460.0,0.00021095,4]
[365147021,1749493834247,-460.0,0.00021095,4]
[365147022,1749493834257,-561.13,0.00021095,4]
[365147023,1749493834267,-1182.94,0.00021095,4]
[365147024,1749493834277,-440.0,0.00021095,4]
[365147025,1749493834288,-1340.61,0.00021095,4]
[365147026,1749493834298,-460.0,0.00021095,4]
[365147027,1749493834307,-430.0,0.00021095,4]
[365147028,1749493834320,-380.0,0.00021095,4]
[365147029,1749493834330,-430.0,0.00021095,4]
[365147030,1749493834339,-460.0,0.00021095,4]
[365147031,1749493834349,-460.0,0.00021095,4]
[365147032,1749493834359,-460.0,0.00021095,4]
[365147033,1749493834369,-460.0,0.00021095,4]
[365147034,1749493834378,-1721.38,0.00021095,4]
[365147035,1749493834388,-460.0,0.00021095,4]
[365147036,1749493834400,-460.0,0.00021095,4]
[365147037,1749493834409,-460.0,0.00021095,4]
[365147038,1749493834419,-460.0,0.00021095,4]
[365147039,1749493834428,-430.0,0.00021095,4]
[365147040,1749493834437,-430.0,0.00021095,4]
[365147041,1749493834447,-947.41,0.00021095,4]
[365147042,1749493834457,-430.0,0.00021095,4]
[365147043,1749493834466,-440.0,0.00021095,4]
[365147044,1749493834476,-554.24,0.00021095,4]
[365147045,1749493834487,-460.0,0.00021095,4]
[365147046,1749493834497,-340.03043852,0.00021095,4]
[365147047,1749493834507,-460.0,0.00021095,4]
[365147048,1749493834517,-37.18344359,0.00021095,4]
[365147049,1749493834566,-342.81655641,0.00021095,4]
[365147050,1749493834576,-460.0,0.00021095,4]
[365147051,1749493834586,-552.51,0.00021095,4]
[365147052,1749493834596,-460.0,0.00021095,4]
[365147053,1749493834605,-405.01543718,0.00021095,4]
[365147054,1749493834615,-440.0,0.00021095,4]
[365147055,1749493834624,-440.0,0.00021095,4]
[365147056,1749493834633,-440.0,0.00021095,4]
[365147057,1749493834643,-660.95,0.00021095,4]
[365147058,1749493834652,-440.0,0.00021095,4]
[365147059,1749493834662,-430.0,0.00021095,4]
[365147060,1749493834671,-153.70800641,0.00021095,4]
[365147061,1749493834700,-286.29199359,0.00021095,4]
[365147062,1749493834710,-460.0,0.00021095,4]
[365147063,1749493834719,-460.0,0.00021095,4]
[365147064,1749493834729,-430.0,0.00021095,4]
[365147065,1749493834738,-460.0,0.00021095,4]
[365147066,1749493834748,-460.0,0.00021095,4]
[365147067,1749493834757,-460.0,0.00021095,4]
[365147068,1749493834767,-1138.93,0.00021095,4]
[365147069,1749493834776,-920.98,0.00021095,4]
[365147070,1749493834786,-440.0,0.00021095,4]
[365147071,1749493834796,-460.0,0.00021095,4]
[365147072,1749493834806,-460.0,0.00021095,4]
[365147073,1749493834815,-711.22,0.00021095,4]
[365147074,1749493834825,-460.0,0.00021095,4]
[365147075,1749493834835,-460.0,0.00021095,4]
[365147076,1749493834844,-1298.41,0.00021095,4]
[365147077,1749493834853,-460.0,0.00021095,4]
[365147078,1749493834863,-460.0,0.00021095,4]
[365147079,1749493834873,-500.34656641,0.00021095,4]
[365147080,1749493834883,-430.0,0.00021095,4]
[365147081,1749493834892,-430.0,0.00021095,4]
[365147082,1749493834902,-460.0,0.00021095,4]
[365147083,1749493834912,-420.0,0.00021095,4]
[365147084,1749493834922,-460.0,0.00021095,4]
[365147085,1749493834932,-440.0,0.00021095,4]
[365147086,1749493834941,-460.0,0.00021095,4]
[365147087,1749493834951,-460.0,0.00021095,4]
[365147088,1749493834961,-1000.0,0.00021095,4]
[365147089,1749493834970,-460.0,0.00021095,4]
[365147090,1749493834980,-440.0,0.00021095,4]
[365147091,1749493834989,-460.0,0.00021095,4]
[365147092,1749493834999,-503.60208404,0.00021095,4]
[365147093,1749493835009,-460.0,0.00021095,4]
[365147094,1749493835019,-2242.04,0.00021095,4]
[365147095,1749493835028,-460.0,0.00021095,4]
[365147096,1749493835038,-2022.98,0.00021095,4]
[365147097,1749493835047,-365.03691886,0.00021095,4]
[365147098,1749493835057,-460.0,0.00021095,4]
[365147099,1749493835067,-440.0,0.00021095,4]
[365147100,1749493835077,-440.0,0.00021095,4]
[365147101,1749493835088,-460.0,0.00021095,4]